[Event "III Menorca Open-A 2024"]
[Site "Ciutadella Menorca"]
[Date "2024.04.04"]
[Round "4.21"]
[White "Sosa, Tomas"]
[Black "Tarhan, Adar"]
[Result "1-0"]
[ECO "C50"]
[WhiteElo "2562"]
[BlackElo "2446"]
[Annotator "TA"]
[PlyCount "55"]
[EventDate "2024.04.02"]
[EventType "swiss"]
[EventCountry "ESP"]
[SourceTitle "playchess.com"]
[Source "ChessBase"]
[SourceQuality "1"]
[TimeControl "5400+30"]

{[%evp 9,55,15,15,14,20,7,16,18,41,18,18,32,46,37,65,54,45,37,94,95,164,189,412,446,459,459,450,450,439,445,1670,1596,1674,1688,1635,1408,1591,1388,1647,962,29982,29983,29986,29987,29982,1804,29994,29995]} 1. e4 {[%emt 0:00:03]} e5 {[%emt 0:00:46]} 2. Nf3 {[%emt 0:00:06]} Nc6 {[%emt 0:00:06]} 3. Bc4 {[%emt 0:00:10]} Bc5 {[%emt 0:00:09]} 4. d3 {[%emt 0:00:06]} Nf6 {[%emt 0:01:37]} 5. Nbd2 {[%emt 0:00:12]} O-O {[%emt 0:01:23]} 6. h3 {[%emt 0:00:08]} a6 {[%emt 0:00:23]} 7. Bb3 {[%emt 0:00:55]} b5 {[%emt 0:10:04]} 8. O-O {[%emt 0:01:46] The position is equal.} Bb7 {[%emt 0:00:44]} 9. Re1 {[%emt 0:00:47]} Bb6 {[%emt 0:08:48]} 10. c3 {[%emt 0:06:05]} h6 {[%emt 0:03:56]} 11. Nf1 {[%emt 0:07:09][%cal Bd2f1,Bf1g3,Bg3e4][%mdl 32]} d5 {[%emt 0:01:03]} 12. exd5 {[%emt 0:00:19]} Nxd5 {[%emt 0:00:05]} 13. Ng3 {[%emt 0:00:06]} (13. Nxe5 Nxe5 14. Rxe5 Bxf2+ 15. Kh1 (15. Kxf2 $2 Qf6+ 16. Kg1 Qxe5 $19) 15... Nf6 $15) 13... Nf4 {[%emt 0:03:35]} ({Black should try} 13... b4 $1 $14) 14. d4 $1 $16 {[%emt 0:07:54]} Qf6 {[%emt 0:01:57]} (14... Ng6 $16 {is a better defense.}) 15. Ne4 $18 {[%emt 0:24:50]} (15. Nxe5 Nxe5 16. Bxf4 Nf3+ 17. gxf3 Qxf4 $11) 15... Qg6 {[%emt 0:03:33]} (15... Qd8 {was necessary.} 16. Nxe5 Nxe5) 16. Bxf4 {[%emt 0:01:29]} (16. dxe5 $2 Qxg2#) 16... exf4 {[%emt 0:00:04]} 17. Nh4 {[%emt 0:00:10]} Qh7 {[%emt 0:00:03][%cal Oc6d4]} 18. Bc2 {[%emt 0:02:32][%cal Oe4f6] Threatens to win with Nf6+!} (18. Qg4 Kh8 19. Qxf4 Na5 $18) 18... Qh8 {[%emt 0:04:13]} 19. Qg4 {[%emt 0:03:52][%cal Re4f6]} g5 {[%emt 0:04:52] [#]} (19... g6 $142 20. Bb3 (20. Qxf4 Qg7 $18) 20... Qg7 21. Nxg6 Na5) 20. Qf5 $1 {[%emt 0:06:14] Threatening mate with Nf6+.} Bc8 {[%emt 0:04:01]} (20... Kg7 21. Nxg5) 21. Nf6+ {[%emt 0:00:20]} Kg7 {[%emt 0:00:03]} 22. Nh5+ {[%emt 0:00:14] Excellent horsemanship.} Kg8 {[%emt 0:00:04]} 23. Qd5 {[%emt 0:00:31]} Nxd4 {[%emt 0:00:35]} 24. cxd4 {[%emt 0:05:53] [#] Re5 would now be deadly.} Qxd4 {[%emt 0:00:20]} 25. Qc6 {[%emt 0:03:10]} Qxf2+ {[%emt 0:07:51]} 26. Kh1 {[%emt 0:04:00]} Bd4 {[%emt 0:00:11]} 27. Qe4 {[%emt 0:00:51]} ({Not} 27. Qxa8 Qxc2 28. Qf3 gxh4 $14) (27. Ng6 $142 Qxc2 28. Ne7+ (28. Qxc2 Bxh3 29. Nxf8 Rxf8 $18) 28... Kh7 29. Qxc2+ Kh8 30. Qc6 (30. Qxc7 f3 $18) (30. Nxc8 Rfxc8 31. Qc6 Bg7 $18) 30... Bg7 31. Ng6+ (31. Qxa8 Bf5 $18) 31... Kh7 32. Nxf8+ Bxf8 33. Qxa8) 27... f5 {[%emt 0:00:28]} 28. Bb3+ {[%emt 0:00:07] Weighted Error Value: White=0.06 (flawless) /Black=0.80.  Mistake:       	---       	Black=4      Inaccurate:     	---       	Black=1      OK:         	White=5     	Black=2      Best:        	White=5     	Black=1      Strong:       	White=1     	---} 1-0

[Event "III Menorca Open-A 2024"]
[Site "Ciutadella Menorca"]
[Date "2024.04.04"]
[Round "4.22"]
[White "Yang, Sung-Jui"]
[Black "Cramling Bellon, Anna"]
[Result "0-1"]
[ECO "D37"]
[WhiteElo "1891"]
[BlackElo "2115"]
[Annotator "RC"]
[PlyCount "68"]
[EventDate "2024.04.02"]
[EventType "swiss"]
[EventCountry "ESP"]
[SourceTitle "playchess.com"]
[Source "ChessBase"]
[SourceQuality "1"]
[TimeControl "5400+30"]

1. d4 {[%emt 0:00:13]} d5 {[%emt 0:00:06]} 2. Nf3 {[%emt 0:00:08]} e6 {[%emt 0:00:16]} 3. c4 {[%emt 0:00:12]} Be7 {[%emt 0:02:37]} 4. Nc3 {[%emt 0:00:20]} Nf6 {[%emt 0:00:04]} 5. Bf4 {[%emt 0:00:35]} O-O {[%emt 0:07:18]} 6. e3 {[%emt 0:00:12]} b6 {[%emt 0:00:52]} 7. Bd3 {[%emt 0:01:14]} Bb7 {[%emt 0:00:23]} 8. cxd5 {[%emt 0:03:12]} exd5 {[%emt 0:01:31]} 9. O-O {[%emt 0:02:42]} c5 {[%emt 0:12:40]} 10. Ne5 {[%emt 0:00:13]} Nbd7 {[%emt 0:03:00]} 11. Qf3 {[%emt 0:00:18]} Nxe5 {[%emt 0:27:52]} 12. dxe5 {[%emt 0:13:51]} Ne8 {[%emt 0:00:30]} 13. Qh3 {[%emt 0:12:46]} g6 {[%emt 0:00:50]} 14. Bh6 {[%emt 0:02:24]} Ng7 {[%emt 0:02:12]} 15. Rad1 {[%emt 0:09:27]} Qc8 {[%emt 0:03:01]} 16. g4 {[%emt 0:01:50]} f6 {[%emt 0:11:31]} 17. exf6 {[%emt 0:03:53]} Bxf6 {[%emt 0:00:04]} 18. f4 {[%emt 0:09:03]} Re8 {[%emt 0:03:58]} 19. f5 {[%emt 0:10:21]} g5 {[%emt 0:02:25]} 20. Bc2 {[%emt 0:00:09]} d4 {[%emt 0:08:55]} 21. exd4 {[%emt 0:00:29]} cxd4 {[%emt 0:02:10]} 22. Bb3+ {[%emt 0:00:19]} Kh8 {[%emt 0:01:03]} 23. Nd5 {[%emt 0:01:51]} Qd8 {[%emt 0:02:07]} 24. Nxf6 {[%emt 0:06:05]} Qxf6 {[%emt 0:00:03]} 25. Rfe1 {[%emt 0:06:58]} Rad8 {[%emt 0:01:16]} 26. Bxg7+ {[%emt 0:01:14]} Kxg7 {[%emt 0:00:44]} 27. Qh5 {[%emt 0:01:28]} Rxe1+ {[%emt 0:01:29]} 28. Rxe1 {[%emt 0:00:06]} d3 {[%emt 0:00:09]} 29. Re8 {[%emt 0:02:06]} Qd4+ {[%emt 0:02:05]} 30. Kf1 {[%emt 0:00:31]} Qf4+ {[%emt 0:00:07]} 31. Kg1 {[%emt 0:00:30]} Qc1+ {[%emt 0:01:31]} 32. Kf2 {[%emt 0:00:55]} Qd2+ {[%emt 0:02:13]} 33. Kf1 {[%emt 0:00:45]} Qg2+ {[%emt 0:00:06]} 34. Ke1 {[%emt 0:00:24]} d2+ {[%emt 0:00:11]} 0-1

[Event "III Menorca Open-A 2024"]
[Site "Ciutadella Menorca"]
[Date "2024.04.04"]
[Round "4.23"]
[White "Laurent, Julien G."]
[Black "Prado, Alexandra"]
[Result "1-0"]
[ECO "E95"]
[WhiteElo "2277"]
[BlackElo "1877"]
[Annotator "RC"]
[PlyCount "91"]
[EventDate "2024.04.02"]
[EventType "swiss"]
[EventCountry "ESP"]
[SourceTitle "playchess.com"]
[Source "ChessBase"]
[SourceQuality "1"]
[TimeControl "5400+30"]

1. Nf3 {[%emt 0:00:06]} Nf6 {[%emt 0:01:47]} 2. c4 {[%emt 0:00:10]} g6 {[%emt 0:00:50]} 3. d4 {[%emt 0:00:12]} Bg7 {[%emt 0:00:11]} 4. Nc3 {[%emt 0:00:07]} O-O {[%emt 0:00:14]} 5. e4 {[%emt 0:00:06]} d6 {[%emt 0:00:13]} 6. Be2 {[%emt 0:00:08]} e5 {[%emt 0:01:42]} 7. O-O {[%emt 0:00:27]} h6 {[%emt 0:00:34]} 8. Rb1 {[%emt 0:12:03]} Nbd7 {[%emt 0:03:57]} 9. Re1 {[%emt 0:03:04]} Nh7 {[%emt 0:00:43]} 10. dxe5 {[%emt 0:06:43]} dxe5 {[%emt 0:13:58]} 11. b4 {[%emt 0:01:55]} Re8 {[%emt 0:14:55]} 12. c5 {[%emt 0:06:48]} c6 {[%emt 0:01:06]} 13. Nd2 {[%emt 0:05:21]} b5 {[%emt 0:09:21]} 14. cxb6 {[%emt 0:02:58]} Nxb6 {[%emt 0:01:16]} 15. Nb3 {[%emt 0:01:30]} Ng5 {[%emt 0:00:36]} 16. Qxd8 {[%emt 0:09:24]} Rxd8 {[%emt 0:00:02]} 17. Na5 {[%emt 0:00:16]} Bd7 {[%emt 0:08:39]} 18. Ba6 {[%emt 0:06:38]} Bc8 {[%emt 0:03:56]} 19. Be2 {[%emt 0:05:56]} Bd7 {[%emt 0:03:53]} 20. Bxg5 {[%emt 0:01:24]} hxg5 {[%emt 0:00:02]} 21. Red1 {[%emt 0:00:30]} Be8 {[%emt 0:05:01]} 22. Ba6 {[%emt 0:03:26]} Bf8 {[%emt 0:00:26]} 23. Rdc1 {[%emt 0:10:56]} Rd4 {[%emt 0:02:17]} 24. a3 {[%emt 0:00:24]} Rad8 {[%emt 0:07:43]} 25. Nb3 {[%emt 0:01:17]} R4d7 {[%emt 0:00:36]} 26. Nd1 {[%emt 0:02:27]} f5 {[%emt 0:04:22]} 27. Ne3 {[%emt 0:01:22]} f4 {[%emt 0:00:15]} 28. Ng4 {[%emt 0:02:33]} Bg7 {[%emt 0:02:04]} 29. Nc5 {[%emt 0:01:18]} Rd2 {[%emt 0:01:26]} 30. Ne6 {[%emt 0:02:01]} R8d3 {[%emt 0:00:39]} 31. Bxd3 {[%emt 0:00:16]} Rxd3 {[%emt 0:00:21]} 32. Rd1 {[%emt 0:02:23]} Rxd1+ {[%emt 0:04:03]} 33. Rxd1 {[%emt 0:00:05]} Bd7 {[%emt 0:02:28]} 34. Rd6 {[%emt 0:01:23]} Kf7 {[%emt 0:00:59]} 35. Nxg5+ {[%emt 0:00:44]} Ke7 {[%emt 0:00:32]} 36. Rxg6 {[%emt 0:00:16]} Bxg4 {[%emt 0:01:01]} 37. Rxg7+ {[%emt 0:00:07]} Kf6 {[%emt 0:01:11]} 38. Rg8 {[%emt 0:00:10]} Be2 {[%emt 0:01:18]} 39. h4 {[%emt 0:00:46]} a6 {[%emt 0:02:36]} 40. f3 {[%emt 0:01:37]} Bc4 {[%emt 0:01:02]} 41. Nh7+ {[%emt 0:00:37]} Kf7 {[%emt 0:00:46]} 42. Rg5 {[%emt 0:00:06]} Nd7 {[%emt 0:00:19]} 43. h5 {[%emt 0:00:11]} Be6 {[%emt 0:00:50]} 44. h6 {[%emt 0:00:09]} Bc4 {[%emt 0:01:39]} 45. Rg7+ {[%emt 0:00:07]} Ke8 {[%emt 0:00:07]} 46. Ng5 {[%emt 0:13:03]} 1-0

[Event "III Menorca Open-A 2024"]
[Site "Ciutadella Menorca"]
[Date "2024.04.04"]
[Round "4.24"]
[White "Bradbury, Neil H"]
[Black "Saine, Zachary"]
[Result "1-0"]
[ECO "A46"]
[WhiteElo "2197"]
[BlackElo "2010"]
[Annotator "RC"]
[PlyCount "83"]
[EventDate "2024.04.02"]
[EventType "swiss"]
[EventCountry "ESP"]
[SourceTitle "playchess.com"]
[Source "ChessBase"]
[SourceQuality "1"]
[TimeControl "5400+30"]

1. d4 {[%emt 1:31:00]} Nf6 {[%emt 0:01:55]} 2. Nf3 {[%emt 0:00:00]} e6 {[%emt 0:00:14]} 3. Bg5 {[%emt 0:00:00]} c5 {[%emt 0:03:14]} 4. e3 {[%emt 0:00:00]} Nc6 {[%emt 0:04:59]} 5. Nbd2 {[%emt 0:00:00]} b6 {[%emt 0:03:28]} 6. c3 {[%emt 0:00:00]} h6 {[%emt 0:09:06]} 7. Bh4 {[%emt 0:00:00]} g5 {[%emt 0:06:03]} 8. Bg3 {[%emt 0:00:00]} Bb7 {[%emt 0:01:27]} 9. Bd3 {[%emt 0:00:00]} Nh5 {[%emt 0:07:00]} 10. Be5 {[%emt 0:00:00]} Nxe5 {[%emt 0:02:25]} 11. Nxe5 {[%emt 0:00:00]} Nf6 {[%emt 0:00:39]} 12. O-O {[%emt 0:00:00]} a6 {[%emt 0:12:03]} 13. e4 {[%emt 0:00:00]} d6 {[%emt 0:04:22]} 14. Ng4 {[%emt 0:00:00]} Bg7 {[%emt 0:14:09]} 15. Ne3 {[%emt 0:00:00]} Nd7 {[%emt 0:03:42]} 16. d5 {[%emt 0:00:00]} Ne5 {[%emt 0:00:49]} 17. Ndc4 {[%emt 0:00:00]} Nxd3 {[%emt 0:01:34]} 18. Qxd3 {[%emt 0:00:00]} b5 {[%emt 0:00:08]} 19. Nd2 {[%emt 0:00:00]} c4 {[%emt 0:04:15]} 20. Qe2 {[%emt 0:00:00]} Qe7 {[%emt 0:03:02]} 21. Rae1 {[%emt 0:00:00]} O-O {[%emt 0:04:30]} 22. Qh5 {[%emt 0:00:00]} Qf6 {[%emt 0:00:35]} 23. dxe6 {[%emt 0:00:00]} fxe6 {[%emt 0:01:23]} 24. Ng4 {[%emt 0:00:00]} Qf4 {[%emt 0:00:04]} 25. Re3 {[%emt 0:03:45]} Kh7 {[%emt 0:09:57]} 26. Nf3 {[%emt 0:00:11]} Bc6 {[%emt 0:01:08]} 27. g3 {[%emt 0:03:31]} Be8 {[%emt 0:00:26]} 28. Qh3 {[%emt 0:00:04]} Qxf3 {[%emt 0:00:15]} 29. Rxf3 {[%emt 0:00:04]} Rxf3 {[%emt 0:00:04]} 30. Ne3 {[%emt 0:01:08]} Bd7 {[%emt 0:00:54]} 31. Qg4 {[%emt 0:01:39]} Rf7 {[%emt 0:00:04]} 32. Rd1 {[%emt 0:02:52]} Be5 {[%emt 0:00:09]} 33. Qh5 {[%emt 0:01:01]} Be8 {[%emt 0:01:13]} 34. Qh3 {[%emt 0:00:19]} Bd7 {[%emt 0:01:32]} 35. Ng4 {[%emt 0:00:20]} Bg7 {[%emt 0:00:21]} 36. Rxd6 {[%emt 0:00:09]} Raf8 {[%emt 0:00:14]} 37. Rxa6 {[%emt 0:01:50]} e5 {[%emt 0:00:20]} 38. Rxh6+ {[%emt 0:00:53]} Kg8 {[%emt 0:00:16]} 39. Rg6 {[%emt 0:00:15]} Rxf2 {[%emt 0:00:48]} 40. Rxg7+ {[%emt 0:00:18]} Kxg7 {[%emt 0:00:05]} 41. Qh6+ {[%emt 0:00:03]} Kg8 {[%emt 0:00:08]} 42. Nxf2 {[%emt 0:00:27]} 1-0

[Event "III Menorca Open-A 2024"]
[Site "Ciutadella Menorca"]
[Date "2024.04.04"]
[Round "5.1"]
[White "Klimkowski, Jan"]
[Black "Aravindh, Chithambaram VR."]
[Result "1/2-1/2"]
[ECO "C60"]
[WhiteElo "2505"]
[BlackElo "2662"]
[Annotator "RC"]
[PlyCount "150"]
[EventDate "2024.04.02"]
[EventType "swiss"]
[EventCountry "ESP"]
[SourceTitle "playchess.com"]
[Source "ChessBase"]
[SourceQuality "1"]
[TimeControl "5400+30"]

1. e4 {[%emt 0:00:03]} e5 {[%emt 0:00:14]} 2. Nf3 {[%emt 0:00:05]} Nc6 {[%emt 0:00:08]} 3. Bb5 {[%emt 0:00:07]} Nge7 {[%emt 0:00:11]} 4. O-O {[%emt 0:00:13]} Ng6 {[%emt 0:00:09]} 5. d4 {[%emt 0:00:31]} exd4 {[%emt 0:00:07]} 6. Nxd4 {[%emt 0:00:06]} Bc5 {[%emt 0:00:07]} 7. Nf5 {[%emt 0:00:24]} O-O {[%emt 0:00:11]} 8. Be3 {[%emt 0:00:20]} Bxe3 {[%emt 0:00:08]} 9. Nxe3 {[%emt 0:00:05]} Nce7 {[%emt 0:00:07]} 10. Nc3 {[%emt 0:02:08]} d6 {[%emt 0:01:13]} 11. f4 {[%emt 0:06:50]} c6 {[%emt 0:00:45]} 12. Bc4 {[%emt 0:01:21]} b5 {[%emt 0:00:38]} 13. Bb3 {[%emt 0:00:04]} Kh8 {[%emt 0:03:17]} 14. f5 {[%emt 0:04:12]} Ne5 {[%emt 0:00:05]} 15. Kh1 {[%emt 0:02:10]} Ng8 {[%emt 0:02:20]} 16. a4 {[%emt 0:10:02]} b4 {[%emt 0:01:24]} 17. Ne2 {[%emt 0:00:04]} Nf6 {[%emt 0:07:25]} 18. Ng3 {[%emt 0:00:26]} a5 {[%emt 0:02:24]} 19. Rf4 {[%emt 0:08:33]} Ba6 {[%emt 0:13:12]} 20. h4 {[%emt 0:10:05]} Qb6 {[%emt 0:20:21]} 21. Qd2 {[%emt 0:01:18]} Rad8 {[%emt 0:02:11]} 22. Rd1 {[%emt 0:01:00]} Rd7 {[%emt 0:00:47]} 23. Qf2 {[%emt 0:01:54]} Qd8 {[%emt 0:02:34]} 24. Kg1 {[%emt 0:04:09]} Re8 {[%emt 0:01:29]} 25. Ba2 {[%emt 0:03:31]} h6 {[%emt 0:01:06]} 26. Bb3 {[%emt 0:01:39]} d5 {[%emt 0:04:53]} 27. exd5 {[%emt 0:00:24]} cxd5 {[%emt 0:00:05]} 28. Rfd4 {[%emt 0:01:43]} Nc6 {[%emt 0:00:52]} 29. Rf4 {[%emt 0:01:35]} d4 {[%emt 0:05:44]} 30. Ng4 {[%emt 0:01:15]} Nxg4 {[%emt 0:11:16]} 31. Rxg4 {[%emt 0:00:04]} Ne5 {[%emt 0:00:03]} 32. Re4 {[%emt 0:05:26]} d3 {[%emt 0:00:36]} 33. c3 {[%emt 0:02:45]} bxc3 {[%emt 0:06:04]} 34. bxc3 {[%emt 0:00:02]} d2 {[%emt 0:00:51]} 35. Bc2 {[%emt 0:06:28]} Bb7 {[%emt 0:06:30]} 36. Rf4 {[%emt 0:03:24]} Nd3 {[%emt 0:03:32]} 37. Bxd3 {[%emt 0:00:05]} Rxd3 {[%emt 0:00:03]} 38. Nf1 {[%emt 0:04:54]} Rxc3 {[%emt 0:04:24]} 39. f6 {[%emt 0:03:55]} Rc1 {[%emt 0:00:40]} 40. Rxd2 {[%emt 0:00:12]} Qc7 {[%emt 0:00:05]} 41. fxg7+ {[%emt 0:04:24]} Kg8 {[%emt 0:00:04]} 42. Qd4 {[%emt 0:00:32]} Ba6 {[%emt 0:02:27]} 43. Rdf2 {[%emt 0:01:26]} Rc4 {[%emt 0:00:09]} 44. Qf6 {[%emt 0:01:52]} Rxf4 {[%emt 0:00:03]} 45. Qxh6 {[%emt 0:00:50]} f6 {[%emt 0:00:04]} 46. Rxf4 {[%emt 0:01:07]} Qxg7 {[%emt 0:00:43]} 47. Qxf6 {[%emt 0:00:35]} Qxf6 {[%emt 0:00:51]} 48. Rxf6 {[%emt 0:00:03]} Bxf1 {[%emt 0:01:05]} 49. Kxf1 {[%emt 0:00:04]} Re4 {[%emt 0:00:03]} 50. g3 {[%emt 0:00:08]} Rxa4 {[%emt 0:00:03]} 51. Kg2 {[%emt 0:00:11]} Ra1 {[%emt 0:00:12]} 52. Ra6 {[%emt 0:02:28]} a4 {[%emt 0:00:29]} 53. Ra7 {[%emt 0:01:29]} a3 {[%emt 0:00:04]} 54. g4 {[%emt 0:00:37]} a2 {[%emt 0:00:08]} 55. g5 {[%emt 0:00:14]} Kh8 {[%emt 0:00:43]} 56. Kh2 {[%emt 0:00:34]} Kg8 {[%emt 0:00:23]} 57. h5 {[%emt 0:00:48]} Kh8 {[%emt 0:01:31]} 58. g6 {[%emt 0:03:18]} Rb1 {[%emt 0:00:25]} 59. Rxa2 {[%emt 0:00:03]} Rb5 {[%emt 0:00:03]} 60. Ra8+ {[%emt 0:00:04]} Kg7 {[%emt 0:00:04]} 61. Ra7+ {[%emt 0:00:02]} Kg8 {[%emt 0:00:04]} 62. Rh7 {[%emt 0:00:05]} Rb3 {[%emt 0:00:04]} 63. Kg2 {[%emt 0:00:05]} Ra3 {[%emt 0:00:30]} 64. Kf2 {[%emt 0:00:20]} Rh3 {[%emt 0:00:31]} 65. Kf1 {[%emt 0:00:23]} Rf3+ {[%emt 0:00:24]} 66. Ke2 {[%emt 0:00:28]} Rg3 {[%emt 0:00:09]} 67. Ke1 {[%emt 0:00:59]} Re3+ {[%emt 0:00:37]} 68. Kd2 {[%emt 0:00:09]} Rh3 {[%emt 0:00:16]} 69. Kc2 {[%emt 0:00:10]} Rg3 {[%emt 0:00:15]} 70. Kb1 {[%emt 0:00:08]} Rb3+ {[%emt 0:00:14]} 71. Ka2 {[%emt 0:00:05]} Rg3 {[%emt 0:01:05]} 72. Kb2 {[%emt 0:00:03]} Rh3 {[%emt 0:00:03]} 73. Kc2 {[%emt 0:00:03]} Rg3 {[%emt 0:00:06]} 74. Kd2 {[%emt 0:00:02]} Rh3 {[%emt 0:00:05]} 75. Ke2 {[%emt 0:00:03]} Rg3 {[%emt 0:00:04]} 1/2-1/2

[Event "III Menorca Open-A 2024"]
[Site "Ciutadella Menorca"]
[Date "2024.04.04"]
[Round "5.2"]
[White "Sosa, Tomas"]
[Black "Erigaisi Arjun"]
[Result "1/2-1/2"]
[ECO "B85"]
[WhiteElo "2562"]
[BlackElo "2748"]
[Annotator "RC"]
[PlyCount "100"]
[EventDate "2024.04.02"]
[EventType "swiss"]
[EventCountry "ESP"]
[SourceTitle "playchess.com"]
[Source "ChessBase"]
[SourceQuality "1"]
[TimeControl "5400+30"]

1. e4 {[%emt 0:00:04]} c5 {[%emt 0:06:24]} 2. Nf3 {[%emt 0:00:05]} e6 {[%emt 0:00:06]} 3. d4 {[%emt 0:00:32]} cxd4 {[%emt 0:00:09]} 4. Nxd4 {[%emt 0:00:06]} Nf6 {[%emt 0:00:06]} 5. Nc3 {[%emt 0:00:05]} Nc6 {[%emt 0:00:05]} 6. a3 {[%emt 0:02:02]} d6 {[%emt 0:00:35]} 7. Be2 {[%emt 0:02:03]} Be7 {[%emt 0:00:47]} 8. O-O {[%emt 0:00:48]} O-O {[%emt 0:00:07]} 9. Be3 {[%emt 0:00:32]} Qc7 {[%emt 0:03:41]} 10. f4 {[%emt 0:03:41]} a6 {[%emt 0:02:58]} 11. Qe1 {[%emt 0:00:51]} Nxd4 {[%emt 0:01:08]} 12. Bxd4 {[%emt 0:00:06]} b5 {[%emt 0:00:04]} 13. Qg3 {[%emt 0:00:29]} Bb7 {[%emt 0:00:17]} 14. Kh1 {[%emt 0:03:23]} Rad8 {[%emt 0:02:34]} 15. Rae1 {[%emt 0:00:51]} Ne8 {[%emt 0:01:29]} 16. Qe3 {[%emt 0:06:24]} Rd7 {[%emt 0:03:43]} 17. Bd3 {[%emt 0:08:33]} Bf6 {[%emt 0:22:42]} 18. Bxf6 {[%emt 0:15:31]} Nxf6 {[%emt 0:00:15]} 19. e5 {[%emt 0:00:27]} Ne8 {[%emt 0:12:15]} 20. f5 {[%emt 0:04:14]} exf5 {[%emt 0:01:57]} 21. Bxf5 {[%emt 0:01:32]} Re7 {[%emt 0:00:07]} 22. e6 {[%emt 0:07:43]} Nf6 {[%emt 0:01:25]} 23. exf7+ {[%emt 0:04:22]} Rfxf7 {[%emt 0:00:26]} 24. Qh3 {[%emt 0:06:31]} Rxe1 {[%emt 0:05:15]} 25. Rxe1 {[%emt 0:01:05]} Re7 {[%emt 0:00:05]} 26. Qg3 {[%emt 0:02:10]} Rxe1+ {[%emt 0:01:31]} 27. Qxe1 {[%emt 0:00:06]} Qc5 {[%emt 0:00:05]} 28. Bd3 {[%emt 0:04:15]} Qg5 {[%emt 0:04:06]} 29. Bf1 {[%emt 0:01:31]} Kf7 {[%emt 0:08:15]} 30. Qf2 {[%emt 0:01:21]} Ke6 {[%emt 0:02:08]} 31. Ne2 {[%emt 0:04:35]} Ne4 {[%emt 0:04:50]} 32. Qb6 {[%emt 0:06:41]} Bd5 {[%emt 0:04:53]} 33. b3 {[%emt 0:11:07]} Nc5 {[%emt 0:03:57]} 34. Qb8 {[%emt 0:01:41]} Ke5 {[%emt 0:00:41]} 35. Qe8+ {[%emt 0:01:13]} Be6 {[%emt 0:01:09]} 36. Ng1 {[%emt 0:00:05]} Qf6 {[%emt 0:00:05]} 37. Qh5+ {[%emt 0:01:18]} Qf5 {[%emt 0:03:11]} 38. Nf3+ {[%emt 0:00:04]} Kf6 {[%emt 0:01:00]} 39. Qh4+ {[%emt 0:00:24]} Kf7 {[%emt 0:00:43]} 40. b4 {[%emt 0:00:16]} Nd7 {[%emt 0:00:50]} 41. Ng5+ {[%emt 0:01:14]} Ke8 {[%emt 0:00:12]} 42. Bd3 {[%emt 0:00:49]} Qf6 {[%emt 0:00:47]} 43. h3 {[%emt 0:00:35]} Bd5 {[%emt 0:01:02]} 44. Qg3 {[%emt 0:00:27]} h6 {[%emt 0:01:56]} 45. Ne4 {[%emt 0:00:07]} Bxe4 {[%emt 0:00:04]} 46. Bxe4 {[%emt 0:00:03]} Qe5 {[%emt 0:00:04]} 47. Qf3 {[%emt 0:00:48]} Qa1+ {[%emt 0:00:48]} 48. Kh2 {[%emt 0:00:01]} Qe5+ {[%emt 0:00:02]} 49. Kh1 {[%emt 0:00:07]} Qa1+ {[%emt 0:00:04]} 50. Kh2 {[%emt 0:00:03]} Qe5+ {[%emt 0:00:03]} 1/2-1/2

[Event "III Menorca Open-A 2024"]
[Site "Ciutadella Menorca"]
[Date "2024.04.04"]
[Round "5.3"]
[White "Nihal Sarin"]
[Black "Iermito, Sebastian"]
[Result "1-0"]
[ECO "C75"]
[WhiteElo "2698"]
[BlackElo "2511"]
[Annotator "RC"]
[PlyCount "125"]
[EventDate "2024.04.02"]
[EventType "swiss"]
[EventCountry "ESP"]
[SourceTitle "playchess.com"]
[Source "ChessBase"]
[SourceQuality "1"]
[TimeControl "5400+30"]

1. e4 {[%emt 0:02:53]} e5 {[%emt 0:00:16]} 2. Nf3 {[%emt 0:00:05]} Nc6 {[%emt 0:00:05]} 3. Bb5 {[%emt 0:00:05]} a6 {[%emt 0:01:39]} 4. Ba4 {[%emt 0:00:48]} d6 {[%emt 0:01:01]} 5. O-O {[%emt 0:01:33]} Bd7 {[%emt 0:00:49]} 6. c3 {[%emt 0:00:24]} Nge7 {[%emt 0:03:38]} 7. d4 {[%emt 0:01:09]} Ng6 {[%emt 0:00:05]} 8. Re1 {[%emt 0:03:04]} Be7 {[%emt 0:00:07]} 9. Be3 {[%emt 0:01:43]} O-O {[%emt 0:00:28]} 10. Nbd2 {[%emt 0:02:52]} exd4 {[%emt 0:06:35]} 11. cxd4 {[%emt 0:10:19]} d5 {[%emt 0:02:06]} 12. e5 {[%emt 0:22:47]} Nb4 {[%emt 0:07:04]} 13. Bxd7 {[%emt 0:00:57]} Qxd7 {[%emt 0:00:04]} 14. Nf1 {[%emt 0:00:07]} Nc6 {[%emt 0:10:00]} 15. Qb3 {[%emt 0:06:49]} Nd8 {[%emt 0:04:10]} 16. Ng3 {[%emt 0:06:39]} c6 {[%emt 0:12:38]} 17. Bd2 {[%emt 0:04:37]} Nh4 {[%emt 0:13:32]} 18. h3 {[%emt 0:04:17]} f5 {[%emt 0:07:33]} 19. exf6 {[%emt 0:07:42]} Nxf3+ {[%emt 0:10:00]} 20. Qxf3 {[%emt 0:00:16]} Rxf6 {[%emt 0:00:45]} 21. Qg4 {[%emt 0:10:19]} Qxg4 {[%emt 0:00:43]} 22. hxg4 {[%emt 0:00:01]} Re6 {[%emt 0:03:04]} 23. f4 {[%emt 0:06:20]} Kf7 {[%emt 0:07:34]} 24. Nf5 {[%emt 0:03:17]} Rxe1+ {[%emt 0:03:00]} 25. Rxe1 {[%emt 0:00:07]} Bf8 {[%emt 0:00:05]} 26. Nh4 {[%emt 0:00:11]} g5 {[%emt 0:02:40]} 27. fxg5 {[%emt 0:01:44]} Ne6 {[%emt 0:00:46]} 28. Nf5 {[%emt 0:00:06]} Re8 {[%emt 0:01:35]} 29. Kf2 {[%emt 0:00:46]} c5 {[%emt 0:01:05]} 30. dxc5 {[%emt 0:01:33]} Nxc5 {[%emt 0:00:14]} 31. Rd1 {[%emt 0:00:20]} Nd3+ {[%emt 0:01:53]} 32. Kf3 {[%emt 0:01:23]} Ne5+ {[%emt 0:00:39]} 33. Kg3 {[%emt 0:00:15]} Nc6 {[%emt 0:00:31]} 34. Bc3 {[%emt 0:00:51]} Rd8 {[%emt 0:00:24]} 35. Bf6 {[%emt 0:00:26]} Rd7 {[%emt 0:00:04]} 36. Kf3 {[%emt 0:00:05]} Nb4 {[%emt 0:01:05]} 37. Rh1 {[%emt 0:01:14]} Kg8 {[%emt 0:00:16]} 38. a3 {[%emt 0:00:17]} Nc6 {[%emt 0:00:05]} 39. Rd1 {[%emt 0:00:18]} Kf7 {[%emt 0:00:06]} 40. g3 {[%emt 0:00:47]} Na5 {[%emt 0:01:24]} 41. Ne3 {[%emt 0:00:18]} Ke6 {[%emt 0:00:38]} 42. Ng2 {[%emt 0:00:06]} Nc4 {[%emt 0:00:31]} 43. Nf4+ {[%emt 0:00:38]} Kf7 {[%emt 0:00:18]} 44. Nd3 {[%emt 0:01:02]} Be7 {[%emt 0:00:36]} 45. b3 {[%emt 0:00:33]} Bxf6 {[%emt 0:00:28]} 46. gxf6 {[%emt 0:00:19]} Kxf6 {[%emt 0:00:13]} 47. bxc4 {[%emt 0:00:10]} dxc4 {[%emt 0:00:01]} 48. Nf2 {[%emt 0:00:07]} Rc7 {[%emt 0:01:02]} 49. Ne4+ {[%emt 0:01:06]} Ke5 {[%emt 0:00:43]} 50. Nc3 {[%emt 0:00:03]} b5 {[%emt 0:00:35]} 51. Rd5+ {[%emt 0:00:50]} Ke6 {[%emt 0:00:11]} 52. Ke4 {[%emt 0:00:26]} Rg7 {[%emt 0:00:45]} 53. g5 {[%emt 0:00:05]} Rf7 {[%emt 0:00:34]} 54. Ne2 {[%emt 0:01:07]} Rf1 {[%emt 0:00:20]} 55. Nd4+ {[%emt 0:00:14]} Ke7 {[%emt 0:00:05]} 56. Nf5+ {[%emt 0:00:31]} Ke8 {[%emt 0:00:27]} 57. Ke5 {[%emt 0:01:14]} c3 {[%emt 0:01:10]} 58. Rc5 {[%emt 0:00:36]} Rc1 {[%emt 0:00:14]} 59. Ke4 {[%emt 0:00:34]} Kf7 {[%emt 0:00:45]} 60. Nd4 {[%emt 0:00:19]} Kg6 {[%emt 0:00:23]} 61. Ne2 {[%emt 0:00:23]} Rc2 {[%emt 0:00:40]} 62. Kd3 {[%emt 0:00:40]} Ra2 {[%emt 0:00:26]} 63. Nf4+ {[%emt 0:01:13]} 1-0